fUST/lending_fUST_20260504
["ID","MTS","AMOUNT","RATE_DAILY","PERIOD"]
[421559947,1777885832000,-2723.57438761,0.00012078,2]
[421559949,1777885832000,-325.1416627,0.00012121,2]
[421559951,1777885832000,-151.0,0.00012121,2]
[421559955,1777885832000,-500.0,0.00012244,2]
[421559937,1777885832000,-308.0,0.00011323,2]
[421559960,1777885832000,-420.0,0.00012439,2]
[421559956,1777885832000,-3431.12536705,0.00012278,2]
[421559964,1777885832000,-4138.67634659,0.00012478,2]
[421559966,1777885832000,-185.0,0.0001262,2]
[421559959,1777885832000,-4100.85736544,0.00012378,2]
[421559962,1777885832000,-501.79147067,0.00012455,2]
[421559977,1777885832000,-2000.0,0.00012727,2]
[421559968,1777885832000,-442.0,0.0001262,2]
[421559970,1777885832000,-2000.0,0.00012727,2]
[421559971,1777885832000,-2000.0,0.00012727,2]
[421559979,1777885832000,-459.1647941,0.00012727,2]
[421559953,1777885832000,-3008.01824144,0.00012178,2]
[421560276,1777885838000,-1540.8352059,0.00012727,2]
[421560278,1777885838000,-2000.0,0.00012727,2]
[421560281,1777885838000,-2000.0,0.00012727,2]
[421560284,1777885838000,-2000.0,0.00012727,2]
[421560289,1777885838000,-1334.2285248,0.00012727,2]
[421560283,1777885838000,-2000.0,0.00012727,2]
[421560286,1777885838000,-2000.0,0.00012727,2]
[421560291,1777885838000,-2000.0,0.00012727,2]
[421560288,1777885838000,-665.7714752,0.00012727,2]
[421560279,1777885838000,-2000.0,0.00012727,2]
[421560299,1777885839000,-419.29489584,0.00012746,2]
[421560298,1777885839000,-500.0,0.00012746,2]
[421560300,1777885839000,-23608.0,0.00012747,2]
[421560297,1777885839000,-305.09540366,0.00012746,2]
[421560302,1777885839000,-338.04236396,0.00012748,2]
[421560301,1777885839000,-500.0,0.00012748,2]
[421560294,1777885839000,-2000.0,0.00012727,2]
[421560303,1777885839000,-500.0,0.00012748,2]
[421560304,1777885839000,-83.32341447,0.00012748,2]
[421560295,1777885839000,-584.83055359,0.00012746,2]
[421560293,1777885839000,-2000.0,0.00012727,2]
[421560296,1777885839000,-500.0,0.00012746,2]
[421560359,1777885841000,-500.0,0.00012748,2]
[421560357,1777885841000,-576.00762259,0.00012748,2]
[421560356,1777885841000,-416.67658553,0.00012748,2]
[421560361,1777885841000,-40.22032015,0.00012748,2]
[421560498,1777885844000,-32.00566648,0.00012748,2]
[421560500,1777885844000,-156.85224326,0.00012749,2]
[421560502,1777885844000,-4876.06598304,0.00012749,2]
[421560495,1777885844000,-427.77401337,0.00012748,2]
[421560508,1777885844000,-1826.03086402,0.00012749,2]
[421560510,1777885844000,-857.52287274,0.00012749,2]
[421560505,1777885844000,-8806.98300026,0.00012749,2]
[421560825,1777885846000,-7079.58116729,0.00012749,2]
[421560854,1777885847000,-4549.94968314,0.00012749,2]
[421560856,1777885847000,-90032.37052778,0.00012749,2]
[421560863,1777885847000,-1298.55723155,0.00012749,2]
[421561001,1777886475000,-300.0,9.415e-05,2]
[421561010,1777886931000,176.0,0.0001675,60]
[421561090,1777887038000,-5000.0,8.954e-05,2]
[421561108,1777887038000,-4596.0,0.00012545,2]
[421561106,1777887038000,-551.65618723,0.00012455,2]
[421561105,1777887038000,-2230.315306,0.00012423,2]
[421561104,1777887038000,-155.62748357,0.000124,2]
[421561113,1777887038000,-500.0,0.00012546,2]
[421561103,1777887038000,-152.12660016,0.000124,2]
[421561102,1777887038000,-500.0,0.00012237,2]
[421561091,1777887038000,-545.0,8.954e-05,2]
[421561112,1777887038000,-500.0,0.00012546,2]
[421561100,1777887038000,-456.2076372,0.00012121,2]
[421561099,1777887038000,-2150.738,0.00011875,2]
[421561097,1777887038000,-151.0,0.00011299,2]
[421561095,1777887038000,-219.76169991,0.0001011,2]
[421561101,1777887038000,-438.9810377,0.00012121,2]
[421561096,1777887038000,-322.93901108,0.00011264,2]
[421561093,1777887038000,-235.71,9.3e-05,2]
[421561094,1777887038000,-732.50851261,0.0001,2]
[421561092,1777887038000,-273.67712803,9.264e-05,2]
[421561098,1777887038000,-300.0,0.00011874,2]
[421561109,1777887038000,-500.0,0.00012546,2]
[421561089,1777887038000,-403.47472256,8.864e-05,2]
[421561107,1777887038000,-470.55672978,0.000125,2]
[421561132,1777887038000,-499.99999999,0.00012546,2]
[421561130,1777887038000,-170.77551129,0.00012546,2]
[421561133,1777887038000,-65755.49791979,0.00012547,2]
[421561131,1777887038000,-500.0,0.00012546,2]
[421561127,1777887038000,-500.0,0.00012546,2]
[421561129,1777887038000,-500.0,0.00012546,2]
[421561128,1777887038000,-500.0,0.00012546,2]
[421561125,1777887038000,-500.0,0.00012546,2]
[421561126,1777887038000,-500.0,0.00012546,2]
[421561119,1777887038000,-574.96574568,0.00012546,2]
[421561110,1777887038000,-283.10604649,0.00012546,2]
[421561124,1777887038000,-500.0,0.00012546,2]
[421561111,1777887038000,-500.0,0.00012546,2]
[421561116,1777887038000,-500.0,0.00012546,2]
[421561115,1777887038000,-500.0,0.00012546,2]
[421561114,1777887038000,-153.20533581,0.00012546,2]
[421561122,1777887038000,-458.0,0.00012546,2]
[421561118,1777887038000,-500.0,0.00012546,2]
[421561120,1777887038000,-500.0,0.00012546,2]
[421561121,1777887038000,-500.0,0.00012546,2]
[421561123,1777887038000,-500.0,0.00012546,2]
[421561117,1777887038000,-500.0,0.00012546,2]
[421561135,1777887041000,-981.08142789,0.00012547,2]
[421561323,1777887044000,-5167.93436883,0.00012547,2]
[421561490,1777887046000,-46669.29022855,0.00012547,2]
[421561691,1777887058000,6858.15981619,7.6e-05,2]
[421561832,1777888232000,-254.95580349,0.00011111,2]
[421561837,1777888232000,-500.0,0.00011111,2]
[421561839,1777888232000,-459.93202346,0.00011111,2]
[421561827,1777888232000,-267.8430341,9.554e-05,2]
[421561830,1777888232000,-7972.28186029,0.0001,2]
[421561838,1777888232000,-500.0,0.00011111,2]
[421561826,1777888232000,-1200.0,9.505e-05,2]
[421561828,1777888232000,-244.37,9.9e-05,2]
[421561823,1777888232000,-1200.0,9.505e-05,2]
[421561825,1777888232000,-300.0,9.505e-05,2]
[421561822,1777888232000,-5000.0,9.41e-05,2]
[421561836,1777888232000,-500.0,0.00011111,2]
[421561829,1777888232000,-251.49622578,0.0001,2]
[421561835,1777888232000,-500.0,0.00011111,2]
[421561824,1777888232000,-300.0,9.505e-05,2]
[421561833,1777888232000,-500.0,0.00011111,2]
[421561831,1777888232000,-161.81549429,0.00011012,2]
[421561846,1777888232000,-500.0,0.00011111,2]
[421561849,1777888232000,-2000.0,0.00011112,2]
[421561847,1777888232000,-500.0,0.00011111,2]
[421561848,1777888232000,-476.6121141,0.00011111,2]
[421561843,1777888232000,-500.0,0.00011111,2]
[421561850,1777888232000,-2000.0,0.00011112,2]
[421561840,1777888232000,-500.0,0.00011111,2]
[421561842,1777888232000,-500.0,0.00011111,2]
[421561844,1777888232000,-500.0,0.00011111,2]
[421561851,1777888232000,-614.30195658,0.00011112,2]
[421561845,1777888232000,-567.47019675,0.00011111,2]
[421561841,1777888232000,-500.0,0.00011111,2]
[421561834,1777888232000,-500.0,0.00011111,2]
[421561906,1777888238000,-1600.67691427,0.00011112,2]
[421561908,1777888238000,-2000.0,0.00011112,2]
[421561909,1777888238000,-2000.0,0.00011112,2]
[421561910,1777888238000,-2000.0,0.00011112,2]
[421561912,1777888238000,-2000.0,0.00011112,2]
[421561907,1777888238000,-387.7096047,0.00011112,2]
[421561911,1777888238000,-2000.0,0.00011112,2]
[421561926,1777888238000,-2000.0,0.00011112,2]
[421561905,1777888238000,-11.61348103,0.00011112,2]
[421561904,1777888238000,-2000.0,0.00011112,2]
[421561896,1777888238000,-2000.0,0.00011112,2]
[421561903,1777888238000,-2000.0,0.00011112,2]
[421561897,1777888238000,-2000.0,0.00011112,2]
[421561901,1777888238000,-2000.0,0.00011112,2]
[421561898,1777888238000,-2000.0,0.00011112,2]
[421561913,1777888238000,-2000.0,0.00011112,2]
[421561900,1777888238000,-2000.0,0.00011112,2]
[421561899,1777888238000,-2000.0,0.00011112,2]
[421561895,1777888238000,-2000.0,0.00011112,2]
[421561893,1777888238000,-9769.85393755,0.00011012,2]
[421561894,1777888238000,-576.0,0.00011112,2]
[421561902,1777888238000,-2000.0,0.00011112,2]
[421561923,1777888238000,-2000.0,0.00011112,2]
[421561914,1777888238000,-2000.0,0.00011112,2]
[421561925,1777888238000,-2000.0,0.00011112,2]
[421561940,1777888238000,-10.11442455,0.00011326,2]
[421561939,1777888238000,-2000.0,0.00011112,2]
[421561932,1777888238000,-2000.0,0.00011112,2]
[421561930,1777888238000,-2000.0,0.00011112,2]
[421561933,1777888238000,-2000.0,0.00011112,2]
[421561934,1777888238000,-2000.0,0.00011112,2]
[421561929,1777888238000,-415.69811724,0.00011112,2]
[421561922,1777888238000,-2000.0,0.00011112,2]
[421561938,1777888238000,-2000.0,0.00011112,2]
[421561931,1777888238000,-2000.0,0.00011112,2]
[421561935,1777888238000,-2000.0,0.00011112,2]
[421561928,1777888238000,-1584.30188276,0.00011112,2]
[421561924,1777888238000,-2000.0,0.00011112,2]
[421561936,1777888238000,-2000.0,0.00011112,2]
[421561921,1777888238000,-2000.0,0.00011112,2]
[421561920,1777888238000,-2000.0,0.00011112,2]
[421561915,1777888238000,-2000.0,0.00011112,2]
[421561916,1777888238000,-2000.0,0.00011112,2]
[421561917,1777888238000,-2000.0,0.00011112,2]
[421561918,1777888238000,-2000.0,0.00011112,2]
[421561927,1777888238000,-2000.0,0.00011112,2]
[421561919,1777888238000,-2000.0,0.00011112,2]
[421561937,1777888238000,-2000.0,0.00011112,2]
[421561958,1777888240000,-34.103513,0.00011426,2]
[421561957,1777888240000,-1290.70704094,0.00011426,2]
[421561956,1777888240000,-151.0,0.00011326,2]
[421561955,1777888240000,-1382.46588894,0.00011326,2]
[421562003,1777888246000,-3422.21777869,0.00011526,2]
[421562004,1777888246000,-316.05478024,0.00011554,2]
[421562005,1777888246000,-1640.41655463,0.00011626,2]
[421562002,1777888246000,-1756.26350679,0.00011426,2]
[421562059,1777888248000,-1990.36528009,0.00011312,2]
[421569137,1777889433000,-631.87264066,9.046e-05,2]
[421569133,1777889433000,-74.74506576,9.046e-05,2]
[421569131,1777889433000,-195.78854547,8.952e-05,2]
[421569129,1777889433000,-162.92449884,8.952e-05,2]
[421569452,1777889438000,-2627.48447689,9.046e-05,2]
[421569460,1777889438000,-304.85441919,9.137e-05,2]
[421569454,1777889438000,-1909.27617633,9.137e-05,2]
[421569456,1777889438000,-1165.32104561,9.137e-05,2]
[421569581,1777889443000,-755.11298001,9.137e-05,2]
[421569959,1777889448000,-10.92089355,9.137e-05,2]
[421569992,1777889449000,-1677.73068863,9.232e-05,2]
[421570001,1777889449000,-457.243,0.00011143,2]
[421569994,1777889449000,-162.92449884,9.808e-05,2]
[421569993,1777889449000,-162.92449884,9.514e-05,2]
[421569999,1777889449000,-331.49794405,0.00010673,2]
[421569987,1777889449000,-854.51448531,9.137e-05,2]
[421569990,1777889449000,-267.44017233,9.229e-05,2]
[421569998,1777889449000,-178.41347598,0.00010424,2]
[421569989,1777889449000,-162.92449884,9.228e-05,2]
[421569988,1777889449000,-548.0,9.137e-05,2]
[421569997,1777889449000,-222.0,0.00010154,2]
[421570000,1777889449000,-152.0,0.00011134,7]
[421569991,1777889449000,-300.0,9.231e-05,2]
[421569996,1777889449000,-219.89901431,0.00010111,2]
[421569995,1777889449000,-178.41347598,0.00010111,2]
[421570010,1777889449000,-198.17423254,0.00011161,2]
[421570007,1777889449000,-1878.55973129,0.00011145,2]
[421570008,1777889449000,-3136.7739262,0.00011145,2]
[421570011,1777889449000,-500.0,0.00011161,2]
[421570004,1777889449000,-348.0,0.00011145,2]
[421570013,1777889449000,-8350.21423219,0.00011162,2]
[421570009,1777889449000,-500.0,0.00011161,2]
[421570006,1777889449000,-16831.03314391,0.00011145,2]
[421570005,1777889449000,-15175.495993,0.00011145,2]
[421570003,1777889449000,-1854.0662738,0.00011145,2]
[421570002,1777889449000,-979.8129823,0.00011145,2]
[421570012,1777889449000,-507.24373507,0.00011161,2]
[421570030,1777890504000,51010.0,0.00021917,120]
[421570031,1777890514000,311.85103185,8.01e-05,2]
[421570060,1777890632000,-8848.0,0.00010701,2]
[421570053,1777890632000,-300.0,8.597e-05,2]
[421570054,1777890632000,-268.1293973,8.598e-05,2]
[421570051,1777890632000,-5000.0,8.512e-05,2]
[421570057,1777890632000,-193.90245312,0.0001011,2]
[421570052,1777890632000,-1200.0,8.597e-05,2]
[421570058,1777890632000,-365.794,0.00010587,2]
[421570056,1777890632000,-1000.0,0.0001,2]
[421570055,1777890632000,-541.0,8.598e-05,2]
[421570061,1777890632000,-500.0,0.00010702,2]
[421570064,1777890632000,-226.4349465,0.00010702,2]
[421570068,1777890632000,-474.03770406,0.00010703,2]
[421570067,1777890632000,-547.40952358,0.00010703,2]
[421570065,1777890632000,-535.03657214,0.00010702,2]
[421570070,1777890632000,-662.43776021,0.00010703,2]
[421570066,1777890632000,-14505.30994212,0.00010703,2]
[421570063,1777890632000,-500.0,0.00010702,2]
[421570062,1777890632000,-500.0,0.00010702,2]
[421570069,1777890632000,-39304.25913332,0.00010703,2]
[421570059,1777890632000,-316.39268882,0.00010598,2]
[421570081,1777890641000,-2137.62001254,0.0001,2]
[421570082,1777890641000,-329.83074482,0.00010596,2]
[421570085,1777890641000,-5804.45881005,0.00010703,2]
[421570083,1777890641000,-892.2175002,0.00010596,2]
[421570086,1777890641000,-42.57973106,0.00010703,2]
[421570100,1777890641000,-2491.17694897,0.00010703,2]
[421570084,1777890641000,-1424.4092725,0.00010596,2]
[421570101,1777890641000,-15659.0,0.00010703,2]
[421570138,1777890647000,-3539.58692918,0.00010703,2]
[421570137,1777890647000,-12596.90317941,0.00010703,2]
[421570135,1777890647000,-5000.0,0.00010596,2]
[421570136,1777890647000,-30736.2720351,0.00010703,2]
[421570209,1777891832000,-1321.83955413,9.089e-05,2]
[421570398,1777891838000,-3575.52084051,9.708e-05,2]
[421570397,1777891838000,-1590.71108465,9.708e-05,2]
[421570389,1777891838000,-1200.0,9.274e-05,2]
[421570386,1777891838000,-3678.16044587,9.089e-05,2]
[421570393,1777891838000,-300.0,9.707e-05,2]
[421570388,1777891838000,-547.0,9.089e-05,2]
[421570391,1777891838000,-281.41047572,9.275e-05,2]
[421570395,1777891838000,-397.67777116,9.708e-05,2]
[421570400,1777891838000,-1616.24588808,0.0001,2]
[421570406,1777891838000,-4622.04836988,0.000101,2]
[421570403,1777891838000,-1000.0,0.0001,2]
[421570405,1777891838000,-500.0,0.0001,2]
[421570408,1777891838000,-5134.5881223,0.000102,2]
[421570411,1777891838000,-365.794,0.00010219,2]
[421570413,1777891838000,-5335.85324429,0.000103,2]
[421570417,1777891838000,-396.53547606,0.000104,2]
[421570415,1777891838000,-341.51391456,0.000104,2]
[421570409,1777891838000,-1000.0,0.00010201,2]
[421570401,1777891838000,-2180.05975938,0.0001,2]
[421570432,1777891839000,-500.0,0.00010571,2]
[421570449,1777891839000,-500.0,0.00010571,2]
[421570442,1777891839000,-500.0,0.00010571,2]
[421570430,1777891839000,-500.0,0.00010571,2]
[421570445,1777891839000,-500.0,0.00010571,2]
[421570447,1777891839000,-500.0,0.00010571,2]
[421570423,1777891839000,-211.16,0.00010547,2]
[421570441,1777891839000,-500.0,0.00010571,2]
[421570425,1777891839000,-500.0,0.00010571,2]
[421570426,1777891839000,-500.0,0.00010571,2]
[421570421,1777891839000,-163.108,0.00010502,2]
[421570419,1777891839000,-4909.07848419,0.000104,2]
[421570428,1777891839000,-535.03657214,0.00010571,2]
[421570439,1777891839000,-370.66264556,0.00010571,2]
[421570437,1777891839000,-500.0,0.00010571,2]
[421570476,1777891839000,-500.0,0.00010572,2]
[421570434,1777891839000,-500.0,0.00010571,2]
[421570462,1777891839000,-500.0,0.00010571,2]
[421570464,1777891839000,-500.0,0.00010571,2]
[421570478,1777891839000,-542.57864952,0.00010572,2]
[421570460,1777891839000,-466.33246248,0.00010571,2]
[421570458,1777891839000,-500.0,0.00010571,2]
[421570474,1777891839000,-394.63182562,0.00010571,2]
[421570456,1777891839000,-500.0,0.00010571,2]
[421570470,1777891839000,-500.0,0.00010571,2]
[421570468,1777891839000,-500.0,0.00010571,2]
[421570472,1777891839000,-8822.36817438,0.00010571,2]
[421570466,1777891839000,-500.0,0.00010571,2]
[421570451,1777891839000,-500.0,0.00010571,2]
[421570452,1777891839000,-500.0,0.00010571,2]
[421570454,1777891839000,-500.0,0.00010571,2]
[421570435,1777891839000,-500.0,0.00010571,2]
[421570519,1777891841000,-12.49196503,0.00010572,2]
[421570522,1777891841000,-15775.8,0.00010573,2]
[421570521,1777891841000,-5339.53196822,0.00010573,2]
[421570520,1777891841000,-2923.93447303,0.00010573,2]
[421570535,1777891843000,-44608.89965852,0.00010573,2]
[421570536,1777891843000,-1999.3,0.00010573,2]
[421570580,1777891847000,-804.05216331,0.00010573,2]
[421570588,1777891847000,-8140.39457961,0.00010573,2]
[421570630,1777891848000,-789.5,0.00010573,2]
[421570622,1777891848000,-27314.69064759,0.00010573,2]
[421570615,1777891848000,-1457.10102313,0.00010573,2]
[421570653,1777892459000,-3001.0,8.584e-05,2]
[421570654,1777892494000,-200.0,8.498e-05,2]
[421570657,1777892892000,20696.6224606,8e-05,2]
[421570674,1777892994000,1715.41167026,8.01e-05,2]
[421570749,1777893032000,-7.0,8.205e-05,2]
[421570840,1777893038000,-152.0,9.912e-05,7]
[421570851,1777893038000,-300.0,0.00010545,2]
[421570852,1777893038000,-39524.20441846,0.00010546,2]
[421570841,1777893038000,-152.0,9.912e-05,7]
[421570837,1777893038000,-535.0,8.205e-05,2]
[421570839,1777893038000,-152.0,9.909e-05,7]
[421570838,1777893038000,-281.82128244,8.288e-05,2]
[421570848,1777893038000,-300.0,0.00010545,2]
[421570836,1777893038000,-467.48980947,8.205e-05,2]
[421570842,1777893038000,-152.0,9.912e-05,7]
[421570846,1777893038000,-1092.0,0.00010544,2]
[421570843,1777893038000,-152.0,9.915e-05,7]
[421570850,1777893038000,-300.0,0.00010545,2]
[421570847,1777893038000,-508.0,0.00010545,2]
[421570845,1777893038000,-1054.30778634,0.00010502,2]
[421570849,1777893038000,-300.0,0.00010545,2]
[421570853,1777893038000,-78697.55217908,0.00010546,2]
[421570857,1777893038000,-3536.23883582,0.00010546,2]
[421570856,1777893038000,-31019.13530686,0.00010546,2]
[421570855,1777893038000,-17226.94880536,0.00010546,2]
[421570844,1777893038000,-332.54911328,0.00010288,2]
[421570854,1777893038000,-6734.74486728,0.00010546,2]
[421570910,1777893043000,-152.0,9.912e-05,7]
[421570912,1777893043000,-2734.30346923,0.00010546,2]
[421570911,1777893043000,-132.64068081,0.00010546,2]
[421570921,1777893046000,-6229.16383755,0.00010546,2]
[421570922,1777893046000,-2452.93688462,0.00010546,2]
[421570920,1777893046000,-896.75205161,0.00010546,2]
[421570925,1777893046000,-7808.74716448,0.00010546,2]
[421570923,1777893046000,-55781.76913549,0.00010546,2]
[421570924,1777893046000,-785.90876817,0.00010546,2]
[421570935,1777894017000,159.91290118,0.00017743,120]
[421571106,1777894238000,-172.12698227,9.563e-05,2]
[421571105,1777894238000,-554.0,9.563e-05,2]
[421571109,1777894238000,-275.51211044,9.998e-05,2]
[421571108,1777894238000,-300.0,9.998e-05,2]
[421571110,1777894238000,-1172.32148615,9.999e-05,2]
[421571107,1777894238000,-687.81942114,9.563e-05,2]
[421571130,1777894240000,-1288.72719031,9.999e-05,2]
[421571165,1777894243000,-2416.4079311,9.999e-05,2]
[421571236,1777894255000,-500.0,0.0001,2]
[421571242,1777894255000,-500.0,0.0001,2]
[421571238,1777894255000,-162.91022996,0.0001,2]
[421571239,1777894255000,-500.0,0.0001,2]
[421571237,1777894255000,-337.08977004,0.0001,2]
[421571240,1777894255000,-500.0,0.0001,2]
[421571241,1777894255000,-500.0,0.0001,2]
[421571245,1777894255000,-500.0,0.0001,2]
[421571234,1777894255000,-500.0,0.0001,2]
[421571246,1777894255000,-500.0,0.0001,2]
[421571244,1777894255000,-500.0,0.0001,2]
[421571233,1777894255000,-2117.61022996,9.999e-05,2]
[421571232,1777894255000,-2833.8792561,9.999e-05,2]
[421571235,1777894255000,-500.0,0.0001,2]
[421571247,1777894255000,-439.42237782,0.0001,2]
[421571243,1777894255000,-500.0,0.0001,2]
[421571258,1777894255000,-292.635,0.00010237,2]
[421571257,1777894255000,-6992.78633221,0.000102,2]
[421571261,1777894255000,-207.85140506,0.00010345,2]
[421571262,1777894255000,-500.0,0.00010345,2]
[421571264,1777894255000,-16044.11058606,0.00010346,2]
[421571260,1777894255000,-238.54943018,0.00010345,2]
[421571259,1777894255000,-500.0,0.00010345,2]
[421571251,1777894255000,-166.9675643,0.00010106,2]
[421571263,1777894255000,-607.37027361,0.00010345,2]
[421571250,1777894255000,-600.0,0.0001,2]
[421571253,1777894255000,-2764.13848742,0.000102,2]
[421571254,1777894255000,-6339.85171592,0.000102,2]
[421571249,1777894255000,-500.0,0.0001,2]
[421571256,1777894255000,-6778.71789879,0.000102,2]
[421571248,1777894255000,-60.57762218,0.0001,2]
[421571252,1777894255000,-195.78854547,0.00010106,2]
[421571255,1777894255000,-5686.9170997,0.000102,2]
[421571267,1777894920000,10000.0,0.000219,120]
[421571268,1777894939000,10000.0,0.000219,120]
[421571270,1777895269000,3725.01517425,8.01e-05,2]
[421571271,1777895282000,180.43500871,7.92e-05,2]
[421571272,1777895320000,850.71739429,8.01e-05,2]
[421571282,1777895352000,250.0,0.000219,120]
[421571283,1777895402000,180.43500871,7.919e-05,2]
[421571398,1777895438000,-535.0,8.164e-05,2]
[421571399,1777895438000,-275.74053943,8.164e-05,2]
[421571400,1777895438000,-666.60065905,9.54e-05,2]
[421571401,1777895438000,-2663.73623358,9.54e-05,2]
[421571403,1777895438000,-277.87056794,9.999e-05,2]
[421571402,1777895438000,-311.152,9.943e-05,2]
[421571444,1777895446000,-3436.18411061,0.0001,2]
[421571441,1777895446000,-22.12943206,9.999e-05,2]
[421571442,1777895446000,-4143.0821904,0.0001,2]
[421571443,1777895446000,-5476.57233196,0.0001,2]
[421571528,1777896632000,-500.0,9.845e-05,2]
[421571531,1777896632000,-500.0,9.845e-05,2]
[421571522,1777896632000,-500.0,9.845e-05,2]
[421571526,1777896632000,-500.0,9.845e-05,2]
[421571518,1777896632000,-275.15951973,9.845e-05,2]
[421571516,1777896632000,-516.98460113,9.845e-05,2]
[421571537,1777896632000,-500.0,9.845e-05,2]
[421571530,1777896632000,-500.0,9.845e-05,2]
[421571512,1777896632000,-300.0,9.844e-05,2]
[421571514,1777896632000,-480.0,9.844e-05,2]
[421571533,1777896632000,-500.0,9.845e-05,2]
[421571502,1777896632000,-248.921,9.747e-05,2]
[421571500,1777896632000,-552.0,9.455e-05,2]
[421571510,1777896632000,-249.66982306,9.826e-05,2]
[421571508,1777896632000,-283.20522578,9.795e-05,2]
[421571497,1777896632000,-151.0,9.455e-05,2]
[421571506,1777896632000,-644.0,9.758e-05,2]
[421571504,1777896632000,-500.0,9.758e-05,2]
[421571535,1777896632000,-500.0,9.845e-05,2]
[421571539,1777896632000,-500.0,9.845e-05,2]
[421571520,1777896632000,-335.40521745,9.845e-05,2]
[421571541,1777896632000,-500.0,9.845e-05,2]
[421571582,1777896632000,-417.46341497,9.845e-05,2]
[421571580,1777896632000,-142.16368196,9.845e-05,2]
[421571576,1777896632000,-142.16368196,9.845e-05,2]
[421571578,1777896632000,-357.83631804,9.845e-05,2]
[421571574,1777896632000,-357.83631804,9.845e-05,2]
[421571524,1777896632000,-272.79009297,9.845e-05,2]
[421571570,1777896632000,-473.53658503,9.845e-05,2]
[421571567,1777896632000,-26.46341497,9.845e-05,2]
[421571558,1777896632000,-490.24132609,9.845e-05,2]
[421571560,1777896632000,-500.0,9.845e-05,2]
[421571572,1777896632000,-500.0,9.845e-05,2]
[421571553,1777896632000,-500.0,9.845e-05,2]
[421571562,1777896632000,-500.0,9.845e-05,2]
[421571556,1777896632000,-500.0,9.845e-05,2]
[421571565,1777896632000,-500.0,9.845e-05,2]
[421571552,1777896632000,-500.0,9.845e-05,2]
[421571547,1777896632000,-490.39730239,9.845e-05,2]
[421571550,1777896632000,-500.0,9.845e-05,2]
[421571545,1777896632000,-500.0,9.845e-05,2]
[421571543,1777896632000,-500.0,9.845e-05,2]
[421571564,1777896632000,-500.0,9.845e-05,2]
[421571625,1777896638000,-82.53658503,9.845e-05,2]
[421571627,1777896638000,-283.20522578,9.845e-05,2]
[421571630,1777896638000,-20508.59991387,9.846e-05,2]
[421571626,1777896638000,-500.0,9.845e-05,2]
[421571629,1777896638000,-4663.58074933,9.846e-05,2]
[421571628,1777896638000,-16744.57652698,9.846e-05,2]
[421571862,1777896643000,-2907.59361649,9.846e-05,2]
[421571871,1777896647000,-7897.77156919,9.846e-05,2]
[421571874,1777896649000,-7882.9,9.846e-05,2]
[421571875,1777896649000,-15286.64332034,9.846e-05,2]
[421571872,1777896649000,-49100.83315631,9.846e-05,2]
[421571883,1777896912000,5977.68500083,0.00021917,120]
[421571894,1777897452000,5000.0,0.00021918,120]
[421571895,1777897483000,5243.0,0.00021918,120]
[421571896,1777897495000,4243.234,0.00021918,120]
[421571897,1777897507000,3443.134645,0.00021918,120]
[421571898,1777897524000,4443.9853,0.00021918,120]
[421571899,1777897537000,4326.198235,0.00021918,120]
[421571900,1777897559000,4287.98712,0.00021918,120]
[421571901,1777897573000,2000.0,0.00021918,120]
[421571902,1777897590000,2164.5089155,0.00021918,120]
[421571903,1777897612000,5000.0,0.00016954,120]
[421571912,1777897741000,1444.0,0.00020329,120]
[421571943,1777897803000,9000.0,0.00021917,120]
[421571984,1777897841000,-199.137,9.453e-05,2]
[421571985,1777897841000,-277.45743842,9.499e-05,2]
[421572000,1777897841000,-445.66080656,9.546e-05,2]
[421571988,1777897841000,-2014.91020796,9.546e-05,2]
[421571987,1777897841000,-5682.34821907,9.546e-05,2]
[421571986,1777897841000,-300.0,9.544e-05,2]
[421572163,1777897854000,-484.30077108,9.546e-05,2]
[421572162,1777897854000,-2833.8792561,9.546e-05,2]
[421572164,1777897855000,-17590.11092146,9.546e-05,2]
[421572165,1777897859000,59167.97526393,7.6e-05,2]
[421572170,1777898522000,1444.0,0.00020329,120]
[421572331,1777899040000,-681.52679593,8.261e-05,2]